Cogmind - Beta 15 --- EXPLORER MODE // 2025.08.27 @ 22:12:03 Player: Spark Result: Core destroyed Performance ------------- Evolutions (3) 1500 Regions Visited (8) 1600 Robots Destroyed (108) 540 Value Destroyed (3687) 3687 Prototype IDs (6) 120 Alien Tech Used (0) 0 Bonus (-78) -78 TOTAL SCORE: 7369 Bonus ------- Friendly Fire -78 Cogmind --------- Core Integrity 0/700 Matter 159/300 Energy 550/550 System Corruption 31% Temperature Critical (546) Movement Treading (240) Ox1 Location -7/Factory Parts ------- > --- POWER (2) -------- Antimatter Reactor Antimatter Reactor > --- PROPULSION (2) --- Heavy Treads > --- UTILITY (8) ------ Advanced Visual Processing Unit Recoil Stabilizer Damper Plating Dynamic Insulation System > --- WEAPON (2) ------- Shock Rifle Rocket Launcher > --- INVENTORY (5) ---- Heavy Treads Heavy Treads Heavy Particle Cannon Peak State ------------ > --- POWER ------------ Antimatter Reactor Antimatter Reactor > --- PROPULSION ------- Heavy Treads > --- UTILITY ---------- Coolant Injector Advanced Visual Processing Unit Recoil Stabilizer Damper Plating Dynamic Insulation System > --- WEAPON ----------- Heavy Particle Cannon Rocket Launcher > --- INVENTORY -------- Heavy Treads Heavy Treads Rocket Launcher [Rating: 71] Favorites ----------- Power Heavy Deuterium Engine Engine Heavy Deuterium Engine Power Core Light Nuclear Core Reactor Antimatter Reactor Propulsion Light Treads Treads Light Treads Wheel Armored Huge Wheel Utility Signal Interpreter Device Experimental Sensor Array Storage Large Storage Unit Processor Signal Interpreter Protection Utility Shielding Weapon Missile Launcher Energy Gun Shock Rifle Energy Cannon Particle Cannon Ballistic Gun Light Assault Rifle Ballistic Cannon Flak Cannon Launcher Missile Launcher Build | -11 -10 -10 -9 -9 -8 -7 -7 -7 ------- Run | Yrd Mat Min Mat Sto Mat Fac Was Fac Slots Evolved 7 | . 1 . 2 . 2 2 . . Power 1 | . . . . . . 1 . . Propulsion . | . . . . . . . . . Utility 6 | . 1 . 2 . 2 1 . . Weapon . | . . . . . . . . . Parts Attached 62 | 6 1 2 7 4 11 21 8 2 Power 14 | 1 . . . 2 1 7 3 . Engine 7 | 1 . . . 2 . 3 1 . Core 5 | . . . . . 1 4 . . Reactor 2 | . . . . . . . 2 . Propulsion 10 | 2 . . 3 1 . 3 1 . Treads 9 | 2 . . 3 1 . 2 1 . Leg . | . . . . . . . . . Wheel 1 | . . . . . . 1 . . Hover . | . . . . . . . . . Flight . | . . . . . . . . . Utility 22 | 2 1 . 3 1 6 7 2 . Device 8 | . . . . 1 2 4 1 . Storage 4 | 1 . . . . 2 1 . . Processor 4 | . 1 . . . 1 2 . . Hackware . | . . . . . . . . . Protection 6 | 1 . . 3 . 1 . 1 . Artifact . | . . . . . . . . . Weapon 16 | 1 . 2 1 . 4 4 2 2 Energy Gun 2 | . . . . . 1 . . 1 Energy Cannon 2 | . . . 1 . . . 1 . Ballistic Gun 1 | 1 . . . . . . . . Ballistic Cannon 2 | . . . . . 1 . 1 . Launcher 9 | . . 2 . . 2 4 . 1 Special Weapon . | . . . . . . . . . Impact Weapon . | . . . . . . . . . Slashing Weapon . | . . . . . . . . . Piercing Weapon . | . . . . . . . . . Special Melee Weapon . | . . . . . . . . . Unidentified Prototypes 3 | . . . . 1 . 2 . . Corrupted Parts 2 | . . . . . . 1 . 1 System Corruption 12 | . . . . . . 8 . 4 Parts Lost 27 | . . . . . 2 22 3 . Power 5 | . . . . . . 5 . . Propulsion 4 | . . . . . . 4 . . Utility 10 | . . . . . 1 8 1 . Weapon 8 | . . . . . 1 5 2 . Highest Loss Streak 8 | . . . . . 1 8 3 . To Critical Strikes . | . . . . . . . . . Average Backups 9 | 3 4 6 9 10 10 11 5 3 Power 2 | . 1 1 2 2 2 3 . . Propulsion 1 | . . . 2 2 2 2 1 2 Utility 1 | 1 2 4 3 3 2 . . . Weapon 3 | 1 1 1 2 2 4 4 1 1 Tool/Special . | . . . . . . . . . Unused Backups 16 | . . . 2 1 . 1 10 2 Power 5 | . . . 1 . . 1 3 . Propulsion 4 | . . . . . . . 2 2 Utility 3 | . . . . 1 . . 2 . Weapon 3 | . . . 1 . . . 2 . Tool/Special 1 | . . . . . . . 1 . Average Slot Usage (%) 88 | . 77 96 99 100 99 84 65 66 Engine 9 | . 12 12 10 10 8 10 4 . Core 1 | . . . . . . 2 . . Treads 13 | . 24 25 20 20 16 6 5 7 Wheel 1 | . . . . . . 3 1 . Device 10 | . . . . 9 12 17 16 17 Storage 9 | . 12 12 10 10 9 10 3 . Processor 12 | . 3 12 10 10 16 14 9 7 Protection 11 | . 12 12 29 21 17 2 5 7 Energy Cannon 3 | . . . . 10 6 1 6 4 Ballistic Gun 3 | . 12 12 9 . . . . . Launcher 9 | . . 8 10 10 8 11 6 5 Peak Build Rating 71 | 6 7 12 16 27 33 57 71 71 Average Rating 30 | 3 6 9 14 24 31 40 59 68 On Entrance 23 | . 6 7 12 16 27 33 35 71 Naked Turns . | . . . . . . . . . Heaviest Build 100 | 19 19 25 34 35 52 64 100 91 Greatest Support 70 | 40 40 40 40 43 43 43 70 70 Greatest Overweight (x) 2 | . . . . . 1 2 2 1 Average Overweight (x) . | . . . . . . 1 1 1 Largest Inventory Capacity 15 | 10 10 10 10 10 15 15 15 5 Average Capacity 12 | 7 10 10 10 10 14 15 7 5 Most Carried 15 | 6 6 9 10 10 13 15 15 5 Average Carried 9 | 3 4 6 9 9 10 11 6 5 Final Capacity 15 | 10 10 10 10 10 15 15 5 5 Final Carried 14 | 4 5 9 10 10 12 14 5 5 Class Distribution -------------------- 96% | Hacker-Mutant 3% | Scavenger-Mutant Dominant Class ---------------- Hacker-Mutant | -10/Materials Hacker-Mutant | -10/Mines Hacker-Mutant | -9/Materials Hacker-Mutant | -9/Storage Hacker-Mutant | -8/Materials Hacker-Mutant | -7/Factory Hacker-Mutant | -7/Waste Scavenger-Mutant | -7/Factory Resources | -11 -10 -10 -9 -9 -8 -7 -7 -7 ----------- Run | Yrd Mat Min Mat Sto Mat Fac Was Fac Matter Collected 2628 | 200 52 133 256 239 194 865 643 46 Remotely . | . . . . . . . . . Salvage Created 4113 | . . 137 319 491 510 1000 1526 130 Parts 188 | . . 10 20 45 32 48 17 16 Haulers Intercepted 2 | . . . 1 1 . . . . Recyclers Shooed 1 | . . . . . . . . 1 Parts Field Recycled . | . . . . . . . . . Retrieved Matter . | . . . . . . . . . Parts Self-Destructed . | . . . . . . . . . Prevented . | . . . . . . . . . Kills | -11 -10 -10 -9 -9 -8 -7 -7 -7 ------- Run | Yrd Mat Min Mat Sto Mat Fac Was Fac Combat Hostiles Destroyed 78 | . . 4 11 18 10 24 6 5 Guns 3 | . . . . . 3 . . . Cannons 17 | . . . . 3 4 5 3 2 AOE 58 | . . 4 11 15 3 19 3 3 Classes Destroyed 16 | . . 3 4 2 3 3 1 . Worker 8 | . . 1 2 . . 5 . . Builder 8 | . . . 2 . 3 3 . . Tunneler 1 | . . . . . 1 . . . Hauler 2 | . . . 1 1 . . . . Recycler 3 | . . 1 . . 2 . . . Mechanic 1 | . . . . . . 1 . . Operator 1 | . . . 1 . . . . . Watcher 6 | . . . . 2 2 1 . 1 Swarmer 14 | . . . 3 5 . 2 . 4 Grunt 43 | . . 4 8 11 6 14 . . Brawler 3 | . . . . . 1 2 . . Duelist 1 | . . . . . . 1 . . Sentry 7 | . . . . 2 2 3 . . Hunter 1 | . . . . . 1 . . . Programmer 3 | . . . . . . 2 . 1 Compactor 6 | . . . . . . . 6 . Best Kill Streak 11 | . . 3 5 11 11 11 3 5 Combat Bots Only 8 | . . 2 5 8 5 5 3 5 Max Kills in Single Turn 8 | . . 3 3 8 2 5 1 2 Gunslinging . | . . . . . . . . . Exploded 8 | . . 2 2 8 1 2 1 1 Melee . | . . . . . . . . . Uniques/NPCs Destroyed . | . . . . . . . . . Combat | -11 -10 -10 -9 -9 -8 -7 -7 -7 -------- Run | Yrd Mat Min Mat Sto Mat Fac Was Fac Hostile Shots Fired 447 | . . 9 15 22 81 273 13 34 Missed 130 | . . 1 5 8 18 92 . 6 Hits 317 | . . 8 10 14 63 181 13 28 Melee 33 | . . . . . . 20 13 . Projectile 284 | . . 8 10 14 63 161 . 28 AOE 1 | . . . . . . 1 . . Critical Strikes 20 | . . . . 1 2 8 7 2 Part Disruptions 1 | . . . . . . 1 . . Damage Taken 4840 | . . 139 156 139 576 2437 894 499 Core 920 | . . 10 24 32 68 435 119 232 Absorbed by Shields 231 | . . . . . 33 198 . . Redirected to Shielding 51 | . . . 3 1 3 44 . . Ignored by Resistances 2795 | . . 84 94 88 373 1583 375 198 Core Remaining (%) 92 | 100 . 96 . 86 87 . . . Volleys Fired 147 | . 1 7 14 15 24 47 27 12 Largest 2 | . 1 2 2 2 2 2 2 2 Hottest 125 | . 20 53 56 104 104 107 120 125 Shots Fired 257 | . 1 14 28 28 45 74 50 17 Gun 32 | . 1 7 14 . 6 . . 4 Cannon 96 | . . . . 15 19 19 37 6 Launcher 129 | . . 7 14 13 20 55 13 7 Special . | . . . . . . . . . Kinetic 44 | . 1 7 14 . 8 4 10 . Thermal 74 | . . . . 15 11 15 27 6 Explosive 106 | . . 7 14 13 20 32 13 7 Electromagnetic 33 | . . . . . 6 23 . 4 Robot Hit Streak 36 | . 1 11 18 9 16 36 19 6 Robot Miss Streak 3 | . . 1 3 1 2 2 2 2 Penetration Max . | . . . . . . . . . Secondary Targets . | . . . . . . . . . Shots Hit Robots 185 | . 1 11 21 15 33 56 38 10 Core Hits 192 | . . 8 20 28 39 73 13 11 Critical Kills . | . . . . . . . . . Critical Parts Destroyed 1 | . . . 1 . . . . . Critical Strikes 2 | . . . 1 . . . 1 . Destroy 1 | . . . 1 . . . . . Blast 1 | . . . . . . . 1 . Melee Attacks . | . . . . . . . . . Impact . | . . . . . . . . . Slashing . | . . . . . . . . . Piercing . | . . . . . . . . . Sneak Attacks . | . . . . . . . . . Combat Hostiles . | . . . . . . . . . Follow-up Attacks . | . . . . . . . . . Damage Inflicted 11447 | . . 759 1224 1412 1712 3431 2397 512 Guns 281 | . . 50 86 . 81 . . 64 Cannons 1839 | . . . . 203 343 307 855 131 Explosions 9299 | . . 709 1138 1197 1288 3108 1542 317 Melee . | . . . . . . . . . Ramming 28 | . . . . 12 . 16 . . Kinetic 614 | . . 50 86 . 114 84 280 . Thermal 2112 | . . . . 203 229 974 575 131 Explosive 7842 | . . 709 1138 1197 1288 1651 1542 317 Electromagnetic 851 | . . . . . 81 706 . 64 Impact . | . . . . . . . . . Slashing . | . . . . . . . . . Piercing . | . . . . . . . . . Highest Corruption 31 | . . . . . 1 22 27 31 Average Corruption 17 | . . . . . 1 17 26 29 Corruption Purged . | . . . . . . . . . Corruption Blocked . | . . . . . . . . . Effects 106 | . . . . . 3 71 25 7 Message Errors 35 | . . . . . . 26 6 3 Matter Fused 18 | . . . . . 1 10 7 . Heat Flow Errors 12 | . . . . . . 10 2 . Energy Discharges 9 | . . . . . 1 5 3 . Parts Rejected 2 | . . . . . . 1 . 1 Parts Fused 2 | . . . . . . 2 . . Data Loss (minor) 8 | . . . . . 1 7 . . Data Loss (major) 7 | . . . . . . 4 2 1 Misfires 3 | . . . . . . 2 1 . Alerts 3 | . . . . . . 1 1 1 Misdirections 2 | . . . . . . 2 . . Weapon Failures 5 | . . . . . . 1 3 1 Overload Shots . | . . . . . . . . . Overflow Damage 451 | . . 14 81 50 102 193 7 4 Projectiles 1 | . . . . . 1 . . . Explosions 450 | . . 14 81 50 101 193 7 4 Melee . | . . . . . . . . . Knockbacks 3 | . . . . 1 2 . . . Impact 1 | . . . . 1 . . . . Kinetic 2 | . . . . . 2 . . . Secondary . | . . . . . . . . . Self-Inflicted Damage 1366 | . . 72 53 35 36 833 307 30 Shots 67 | . . 5 3 3 3 39 13 1 Rammed 4 | . . . . 1 . 3 . . Targets Rammed 4 | . . . . 1 . 3 . . Kicked . | . . . . . . . . . Crushed . | . . . . . . . . . Highest Temperature 589 | . 3 97 24 224 375 239 203 589 Average Temperature 121 | . 3 39 8 66 140 68 141 274 Received Heat Transfer 1037 | . . 63 39 54 255 554 . 72 Effects 36 | . . . . . 1 . . 35 Shutdowns 11 | . . . . . 1 . . 10 Energy Bleed 1 | . . . . . . . . 1 Interference 5 | . . . . . . . . 5 Matter Decay 2 | . . . . . . . . 2 Short Circuit 2 | . . . . . . . . 2 Damage (minor) 2 | . . . . . . . . 2 Damage (major) 11 | . . . . . . . . 11 Damage (core) 2 | . . . . . . . . 2 Siege Activations . | . . . . . . . . . Martial Activations . | . . . . . . . . . Shielding Activations . | . . . . . . . . . Robots Disrupted . | . . . . . . . . . Combat Hostiles . | . . . . . . . . . Robots Corrupted . | . . . . . . . . . Combat Hostiles . | . . . . . . . . . Parts Fried 2 | . . . . . . 2 . . Impact Corruptions . | . . . . . . . . . Robots Melted . | . . . . . . . . . Combat Hostiles . | . . . . . . . . . Parts Melted 1 | . . . . . 1 . . . Heat Transferred 3020 | . . . . 370 407 1207 851 185 Parts Sabotaged . | . . . . . . . . . Parts Stolen . | . . . . . . . . . Parts Stripped . | . . . . . . . . . Power Chain Reactions 6 | . . . . . . 6 . . Alert | -11 -10 -10 -9 -9 -8 -7 -7 -7 ------- Run | Yrd Mat Min Mat Sto Mat Fac Was Fac Maximum Alert Level 1 | . . . . 1 1 1 . . Low Security (%) 87 | 100 100 100 100 55 63 89 100 100 Level 1 12 | . . . . 44 36 10 . . Level 2 . | . . . . . . . . . Level 3 . | . . . . . . . . . Level 4 . | . . . . . . . . . Level 5 . | . . . . . . . . . High Security . | . . . . . . . . . Max Security . | . . . . . . . . . Peak Influence 331 | . 15 68 157 331 257 302 13 121 Initial 78 | . . . 1 16 78 69 . . Average 69 | . . 11 40 162 105 84 . 54 Influence Increases 3119 | . 25 148 414 576 470 1271 49 166 Destroy 0b10 Robot/C 1440 | . . 80 220 360 200 480 . 100 Destroy 0b10 Robot/NC 150 | . . 10 30 15 40 50 . 5 Destroy Leader 346 | . . 20 42 56 64 132 . 32 Successful Hack 58 | . 10 . 2 . . 46 . . Disable Machine 120 | . . 8 12 24 8 68 . . Anti-Garrison Action 150 | . . . . . . 150 . . Destroy Structure 735 | . . 30 108 106 98 315 49 29 Partial Spotted 30 | . 15 . . 15 . . . . Lose Combat Pursuer 90 | . . . . . 60 30 . . Influence Decreases 3013 | . 25 143 363 371 519 1483 49 60 Entered New Map 370 | . . . 4 40 183 143 . . Time Decay 2295 | . 25 143 247 331 303 1148 38 60 Lost Part 223 | . . . . . 20 192 11 . Lost Ally 13 | . . . . . 13 . . . Purge Threat 112 | . . . 112 . . . . . Squads Dispatched 21 | . . . 2 . 2 16 . 1 Investigation 7 | . . . 1 . . 6 . . Extermination 3 | . . . . . . 3 . . Reinforcement 5 | . . . 1 . 2 1 . 1 Assault 1 | . . . . . . 1 . . Garrison 5 | . . . . . . 5 . . Intercept . | . . . . . . . . . Searches Triggered . | . . . . . . . . . Construction Impeded 2 | . . . . . 2 . . . Haulers Reinforced 1 | . . . . . . . . 1 Active Scanning Responses . | . . . . . . . . . Cargo Convoy Interrupts . | . . . . . . . . . Stealth | -11 -10 -10 -9 -9 -8 -7 -7 -7 --------- Run | Yrd Mat Min Mat Sto Mat Fac Was Fac Distress Signals 4 | . . . . . 2 1 . 1 Communications Jammed . | . . . . . . . . . Distress Signals . | . . . . . . . . . Times Spotted 91 | . 1 4 11 8 17 36 6 8 Peak Tracking Total 6 | . 1 2 3 6 6 6 3 3 Tactical Retreats 9 | . . . . . 4 5 . . Traps | -11 -10 -10 -9 -9 -8 -7 -7 -7 ------- Run | Yrd Mat Min Mat Sto Mat Fac Was Fac Traps Triggered 12 | . 1 . 1 3 1 6 . . Indirectly . | . . . . . . . . . Trap Hack Attempts . | . . . . . . . . . Triggered . | . . . . . . . . . Disarmed 1 | . . . 1 . . . . . Reprogrammed . | . . . . . . . . . Reused . | . . . . . . . . . Traps Extracted . | . . . . . . . . . Installed . | . . . . . . . . . Triggered . | . . . . . . . . . Machines | -11 -10 -10 -9 -9 -8 -7 -7 -7 ---------- Run | Yrd Mat Min Mat Sto Mat Fac Was Fac Machines Disabled 31 | . . 2 3 6 2 18 . . Max in Single Turn 6 | . . 2 1 2 1 6 . . Garrison Access 1 | . . . . . . 1 . . Machines Repaired . | . . . . . . . . . Machines Dismantled . | . . . . . . . . . Machines Sabotaged . | . . . . . . . . . Overloaded Fab Kills . | . . . . . . . . . Hacking | -11 -10 -10 -9 -9 -8 -7 -7 -7 --------- Run | Yrd Mat Min Mat Sto Mat Fac Was Fac Machines Accessed 15 | . 1 . 5 . 2 7 . . Terminals 11 | . 1 . 4 . 2 4 . . Fabricators 1 | . . . . . . 1 . . Repair Stations 1 | . . . . . . 1 . . Recycling Units 1 | . . . . . . 1 . . Scanalyzers 1 | . . . 1 . . . . . Garrison Access . | . . . . . . . . . Total Hacks 39 | . 1 . 13 . 3 22 . . Successful 23 | . 1 . 10 . 3 9 . . Failed 16 | . . . 3 . . 13 . . Catastrophic 1 | . . . . . . 1 . . Database Lockouts . | . . . . . . . . . Manual 3 | . . . . 3 . . . . Terminals 26 | . 1 . 9 . 3 13 . . Fabricators 2 | . . . . . . 2 . . Repair Stations 4 | . . . . . . 4 . . Recycling Units 3 | . . . . . . 3 . . Scanalyzers 4 | . . . 4 . . . . . Garrison Access . | . . . . . . . . . Terminal Hacks 16 | . 1 . 7 . 3 5 . . Record 1 | . . . 1 . . . . . Part Schematic 1 | . . . . . . 1 . . Prototype ID Bank 1 | . . . 1 . . . . . Open DSF 1 | . . . . . . 1 . . Alert Level 2 | . . . 1 . 1 . . . Unreport Threat 1 | . . . 1 . . . . . Locate Traps 1 | . . . 1 . . . . . Disarm Traps 1 | . . . 1 . . . . . Maintenance Status 2 | . . . 1 . 1 . . . Security Status 1 | . . . . . 1 . . . Assault Status 1 | . . . . . . 1 . . Registered Components 1 | . . . . . . 1 . . Zone Layout 2 | . 1 . . . . 1 . . Fabricator Hacks . | . . . . . . . . . Repair Station Hacks 2 | . . . . . . 2 . . Scan Component 2 | . . . . . . 2 . . Recycling Unit Hacks 2 | . . . . . . 2 . . Recycle Component 1 | . . . . . . 1 . . Process 1 | . . . . . . 1 . . Scanalyzer 3 | . . . 3 . . . . . Insert Component 1 | . . . 1 . . . . . Analyze 2 | . . . 2 . . . . . Garrison Access Hacks . | . . . . . . . . . Unauthorized Hacks . | . . . . . . . . . Terminals . | . . . . . . . . . Fabricators . | . . . . . . . . . Repair Stations . | . . . . . . . . . Recycling Units . | . . . . . . . . . Scanalyzers . | . . . . . . . . . Garrison Access . | . . . . . . . . . Data Cores Recovered 1 | . . . 1 . . . . . Used . | . . . . . . . . . Hacking Detections 11 | . 1 . 2 1 1 6 . . Full Trace Events 7 | . . . 1 . . 6 . . Feedback Events 2 | . . . . . . 2 . . Corruption 2 | . . . . . . 2 . . Feedback Blocked . | . . . . . . . . . Robot Schematics Acquired . | . . . . . . . . . Robots Built . | . . . . . . . . . Authchips . | . . . . . . . . . Time . | . . . . . . . . . Total Robot Build Rating . | . . . . . . . . . Part Schematics Acquired 2 | . . . 1 . . 1 . . Parts Built . | . . . . . . . . . Authchips . | . . . . . . . . . Time . | . . . . . . . . . Total Part Build Rating . | . . . . . . . . . Parts Repaired . | . . . . . . . . . Time . | . . . . . . . . . Parts Recycled 1 | . . . . . . 1 . . Recycled Matter 1 | . . . . . . 1 . . Retrieved Matter . | . . . . . . . . . Retrieved Components . | . . . . . . . . . Parts Scanalyzed 1 | . . . 1 . . . . . Part Schematics Acquired 1 | . . . 1 . . . . . Parts Damaged . | . . . . . . . . . Bothacking | -11 -10 -10 -9 -9 -8 -7 -7 -7 ------------ Run | Yrd Mat Min Mat Sto Mat Fac Was Fac Used RIF Installer . | . . . . . . . . . Robots Hacked . | . . . . . . . . . Non-combat . | . . . . . . . . . Combat . | . . . . . . . . . Robot Hacks Applied . | . . . . . . . . . Relay Couplers Released 1 | . . . . . . 1 . . Machine Destruction 1 | . . . . . . 1 . . Fabnet Peak Effective % . | . . . . . . . . . Robots Rewired . | . . . . . . . . . Allies Hacked . | . . . . . . . . . Hacks Repelled . | . . . . . . . . . Allies | -11 -10 -10 -9 -9 -8 -7 -7 -7 -------- Run | Yrd Mat Min Mat Sto Mat Fac Was Fac Total Allies 4 | . . . . 3 . . 1 . Largest Group 3 | . . . . 3 2 . 1 . Highest-Rated Group 31 | . . . . 24 16 . 31 . Highest-Rated Ally 31 | . . . . 8 8 . 31 . Total Orders . | . . . . . . . . . Ally Attacks 12 | . . . . . 7 . 5 . Total Damage 171 | . . . . . 65 . 106 . Kills . | . . . . . . . . . Allies Corrupted 1 | . . . . 1 . . . . Allies Melted . | . . . . . . . . . Intel | -11 -10 -10 -9 -9 -8 -7 -7 -7 ------- Run | Yrd Mat Min Mat Sto Mat Fac Was Fac Active Infowar (turns) 3666 | . . . . 544 534 2078 414 96 Optics 1506 | . . . . . . 996 414 96 Sensors 2551 | . . . . 544 534 1473 . . ECM 1086 | . . . . . . 1086 . . Robot Analysis Total . | . . . . . . . . . Derelict Logs Recovered 1 | . . 1 . . . . . . Drone Launches . | . . . . . . . . . Drone Recoveries . | . . . . . . . . . Exploration | -11 -10 -10 -9 -9 -8 -7 -7 -7 ------------- Run | Yrd Mat Min Mat Sto Mat Fac Was Fac Turns Passed 5369 | 85 252 584 728 594 534 2078 414 100 Spaces Moved 2688 | 48 154 349 418 330 185 1025 153 26 Core 5 | 5 . . . . . . . . Treads 1994 | 43 154 349 418 330 185 371 118 26 Legs . | . . . . . . . . . Wheels 689 | . . . . . . 654 35 . Hover . | . . . . . . . . . Flight . | . . . . . . . . . Fastest Speed 50 | 50 160 160 160 160 160 115 115 240 Average Speed 170 | 148 160 160 160 160 231 166 200 240 Slowest Speed 320 | 160 160 160 160 160 240 320 240 240 Overloaded Moves . | . . . . . . . . . Propulsion Burnouts . | . . . . . . . . . Robots Hopped . | . . . . . . . . . Potential Cave-ins . | . . . . . . . . . Cave-ins Triggered 1 | . . . . . . . 1 . Exploration Rate (%) 38 | 5 30 77 49 45 26 30 81 1 Regions Visited 8 Branch Regions 2 Pre-discovered Areas 1 | . . 1 . . . . . . Known Exits Taken 6 | 1 1 1 1 1 1 . . . Unknown Exits Taken . | . . . . . . . . . Scrap Searched 1 | . . 1 . . . . . . Spaces Dug 7 | . . . . . . . 7 . Terrain Destroyed 999 | . . 59 121 158 131 415 85 30 Melee . | . . . . . . . . . Projectile 3 | . . . . 2 . 1 . . AOE 996 | . . 59 121 156 131 414 85 30 Terrain Rammed . | . . . . . . . . . Walls Destroyed . | . . . . . . . . . Machines Disabled . | . . . . . . . . . Actions | -11 -10 -10 -9 -9 -8 -7 -7 -7 --------- Run | Yrd Mat Min Mat Sto Mat Fac Was Fac Total 3214 | 61 159 362 453 365 240 1317 211 46 Wait 160 | . . . 1 4 9 141 . 5 Move 2681 | 47 153 348 417 329 184 1025 152 26 Hop . | . . . . . . . . . Pick Up 76 | 8 3 5 6 5 7 30 12 . Fast Attach 4 | 2 . . 1 . . . . 1 Attach 49 | 4 2 1 2 . 5 25 10 . Detach 4 | . . . . . 1 3 . . Swap 39 | . . 1 4 6 9 15 2 2 Drop 26 | . . . 8 5 1 4 8 . Fire 147 | . 1 7 14 15 24 47 27 12 Melee . | . . . . . . . . . Ram 2 | . . . . . . 2 . . Kick . | . . . . . . . . . Crush 2 | . . . . 1 . 1 . . Escape Stasis 24 | . . . . . . 24 . . Rewire . | . . . . . . . . . Trap . | . . . . . . . . . Miscellaneous . | . . . . . . . . . Route ------- -11/Scrapyard -10/Materials -10/Mines -9/Materials (discovered 2 exits: *Min / *Sto) -9/Storage -8/Materials -7/Factory -7/Waste -7/Factory History --------- Turn | Location | Event 4 | -11/Scrapyard | Identified exit to Materials 4 | -11/Scrapyard | Discovered exit to Materials (range 16) 86 | -11/Scrapyard | Entered Materials 86 | -10/Materials | Evolved 1 slot: Utility x1 280 | -10/Materials | Identified exit to Mines 280 | -10/Materials | Discovered exit to Mines (range 10) 303 | -10/Materials | Build established: Hacker-Mutant 338 | -10/Materials | Entered Mines 339 | -10/Mines | Learned location of Storage (-9) 353 | -10/Mines | Found a damaged Exp. Sensor Array with a note attached 356 | -10/Mines | Found Prototype Device 495 | -10/Mines | Received a Rocket Launcher from a helpful Derelict 843 | -10/Mines | Identified exit to Materials 843 | -10/Mines | Discovered exit to Materials (range 13) 860 | -10/Mines | Met a Derelict who couldn't figure out how to use a Trap Extractor 922 | -10/Mines | Entered Materials 922 | -9/Materials | Evolved 2 slots: Utility x2 923 | -9/Materials | Identified exit to Mines 1347 | -9/Materials | Identified Exp. Sensor Array 1530 | -9/Materials | Identified exit to Storage 1530 | -9/Materials | Discovered exit to Storage (range 11) 1650 | -9/Materials | Entered Storage 2003 | -9/Storage | Destroyed 8 combat bots 2176 | -9/Storage | Assisted by bots powering up and referring to "LRC-V3" 2236 | -9/Storage | Identified exit to Materials 2236 | -9/Storage | Discovered exit to Materials (range 5) 2244 | -9/Storage | Entered Materials 2244 | -8/Materials | Accompanied by 2 allies 2244 | -8/Materials | Evolved 2 slots: Utility x2 2694 | -8/Materials | Identified exit to Factory 2694 | -8/Materials | Discovered exit to Factory (range 13) 2778 | -8/Materials | Entered Factory 2778 | -7/Factory | Evolved 2 slots: Power x1, Utility x1 2892 | -7/Factory | Garrison activated, responded to threat 3326 | -7/Factory | Lost 8 parts (2p2n4u) 3355 | -7/Factory | System corruption reached 10% 3372 | -7/Factory | Lost 3 parts (1p1u1w) 3542 | -7/Factory | Lost 5 parts (2p1n2w) 3567 | -7/Factory | Found Prototype Launcher 3898 | -7/Factory | Identified Rocket Array 4406 | -7/Factory | Core integrity fell below 50% 4411 | -7/Factory | Garrison activated, responded to threat 4856 | -7/Factory | Sucked down chute 4856 | -7/Factory | Entered Waste 4857 | -7/Waste | Met a frightened Derelict 4871 | -7/Waste | EMP discharged 4875 | -7/Waste | Spotted C-40 Crusher 4906 | -7/Waste | Destroyed C-40 Crusher 4935 | -7/Waste | Found Damper Plating 4943 | -7/Waste | Spotted C-40 Crusher 4957 | -7/Waste | Spotted C-40 Crusher 4964 | -7/Waste | Crushed by Compactor (0 parts destroyed, 1 dropped) 4971 | -7/Waste | EMP discharged 4971 | -7/Waste | Crushed by Compactor (1 part destroyed) 4983 | -7/Waste | Crushed by Compactor (0 parts destroyed, 1 dropped) 4986 | -7/Waste | Crushed by Compactor (0 parts destroyed, 1 dropped) 4988 | -7/Waste | Crushed by falling debris 4988 | -7/Waste | Spotted C-40 Crusher 4998 | -7/Waste | Destroyed C-40 Crusher 5003 | -7/Waste | Destroyed C-40 Crusher 5009 | -7/Waste | Destroyed C-40 Crusher 5019 | -7/Waste | Lost 3 parts (1u2w) 5071 | -7/Waste | EMP discharged 5108 | -7/Waste | Spotted C-40 Crusher 5114 | -7/Waste | Destroyed C-40 Crusher 5138 | -7/Waste | Spotted C-40 Crusher 5146 | -7/Waste | Destroyed C-40 Crusher 5171 | -7/Waste | EMP discharged 5246 | -7/Waste | Identified exit to Factory 5246 | -7/Waste | Discovered exit to Factory (range 10) 5270 | -7/Waste | Entered Factory 5306 | -7/Factory | Core integrity fell below 20% 5321 | -7/Factory | System corruption reached 30% 5371 | -7/Factory | Core destroyed Last Messages --------------- Overheating: Antimatter Reactor damaged (-24). Overheating: Recoil Stabilizer damaged (-2). Overheating: Hvy. Treads damaged (-141). Critical hit (Burn: +37). K-01 Serf collects debris. Overheating: System interference. Adv. Visual Processing Unit temporarily disabled. Overheating: Shock Rifle damaged (-11). Overheating: Recoil Stabilizer damaged (-1). Overheating: Broken Rocket Launcher damaged (-46). Overheating: Antimatter Reactor damaged (-38). Overheating: Matter decay (-23). System corrupted: IFF burst signal emitted. R-06 Scavenger collects Gravmag System. Overheating: Hvy. Treads damaged (-76). Overheating: Shock Rifle damaged (-17). Overheating: Damper Plating damaged (-25). Overheating: Antimatter Reactor damaged (-20). Power failure, Antimatter Reactor shutdown. Overheating: Core damaged (-91). Map ----- +----------------------------------------------------+ | | | | | ?????????????????????????????????????????????????? | | ?????????????????????????????????????????????????? | | ?????????????????????????????????????????????????? | | ?????????????????????????????????????????????????? | | ?????????????????????????????????????????????????? | | ?????????????????????????????????????????????????? | | ?????????????????????????????????????????????????? | | ?????????????????????????????????????????????????? | | ?????????????????????????????????????????????????? | | ?????????????????????????????????????????????????? | | ????????????????????????????????????????????????? | | ???????????????????????????????????????????????? # | | ??????????????????????????????????????????????? # | | ?????????????????????????????????????????????? # | | ????????????????????????????????????????????? # | | ???????????????????????????????????????????? # | | ???????????????????????################+#### # | | ???????????????????????# # # | | ??????? ??????????????# # # | | ???? ????????????# # # | | ???? ###???????# + # | | ??? ##??### # # | | ??? ## #[ # ###### | | ??? gg @ # #????? | | ??? [ = ####### #????? | | ??? * # #???????#????? | | ?????# # #????????????? | | ?????? # ## ####r #????????????? | | ?????# #??##???# #????????????? | | ?????# #?????????##############????????????? | | ?????# #?????????????????????????????????????? | | ?????? ???????????????????????????????????????? | | ?????? ?????????????????????????????????????????? | | ?????????????????????????????????????????????????? | | ?????????????????????????????????????????????????? | | ?????????????????????????????????????????????????? | | ?????????????????????????????????????????????????? | | ?????????????????????????????????????????????????? | | ?????????????????????????????????????????????????? | | ?????????????????????????????????????????????????? | | ?????????????????????????????????????????????????? | | ?????????????????????????????????????????????????? | | ?????????????????????????????????????????????????? | | ?????????????????????????????????????????????????? | | ?????????????????????????????????????????????????? | | ?????????????????????????????????????????????????? | | ?????????????????????????????????????????????????? | | ?????????????????????????????????????????????????? | +----------------------------------------------------+ Best States ------------- Heat Dissipation 48 Coolant Potential 65 Energy Generation 37 Energy Capacity 655 Matter Stores 300 Matter Capacity 450 Sight Range 20 Robot Scan Range 20 Terrain Scan Density 10 ECM Strength 1 EM Shielding 2 Armor Coverage 1600 Resistance: KI 35 Resistance: TH 35 Resistance: EX 35 Resistance: EM 100 Resistance: I 35 Resistance: S 35 Resistance: P 35 Utility Shielding 33 Evasion (%) 40 Targeting Accuracy 14 Recoil Reduction 6 Kinecelleration 30 Offensive Hacking 20 Item Schematics ----------------- Exp. Sensor Array | -9/Materials | Scanalyzed Adv. Hacking Suite | -7/Factory | Hacked Robot Schematics ------------------ None Fabricated ------------ Nothing Repaired ---------- Nothing Alien Tech Used ----------------- None Achievements -------------- Everything Is Under Control Maybe Next Time I'll Detach My Launcher Quick And Dirty Safety First Superinsulated Challenges ------------ None Game ------ Seed ExplosiveSniperFacilitator Manual? 0 Play Time 00:57:14 Cumulative 6.7 hours Start 2025.08.27 @ 21:15:23 End 2025.08.27 @ 22:12:03 Sessions 1 Manual Loads 0 Difficulty Explorer Special Mode None Game No. 8 Rogue 0 Adventurer 0 Explorer 8 Win Type - Total 0 Types 0/0/0/0/0/0/0/0/0/0 Lore% 2 Gallery% 16 Achievement% 16 Wizard Run 0 Options --------- Layout 1 ASCII 0 Keyboard 0 Movement Mouse Keybinds 0 Fullscreen 1 Font 32/SmallcapsGlow Map View 77x35 Zoom Use 0% Tactical HUD 0 Map Filters NONE Filters NONE Steam 1 RUN: 6d701811-5b85-4408-9b04-3bce286e4924